Cogmind - Beta 13 @@@ ROGUE MODE // 2024.04.22 @ 18:24:52 Player: LEWiKK Result: Destroyed by G-47 Trooper with Particle Gun Performance ------------- Evolutions (2) 1000 Regions Visited (3) 600 Robots Destroyed (47) 235 Value Destroyed (1746) 1746 Prototype IDs (5) 100 Alien Tech Used (0) 0 Bonus (78) 78 TOTAL SCORE: 3759 Bonus ------- High Alert Combat Kills 78 Cogmind --------- Core Integrity 0/550 Matter 59/300 Energy 100/100 System Corruption 0% Temperature Cool (18) Movement Core (150) Ox2 Location -8/Materials Parts ------- > --- POWER (1) -------- (None) > --- PROPULSION (4) --- (None) > --- UTILITY (4) ------ Small Storage Unit > --- WEAPON (2) ------- High-powered Shotgun > --- INVENTORY (8) ---- ECM Suite Hacking Suite Peak State ------------ > --- POWER ------------ Light Nuclear Core > --- PROPULSION ------- Aluminum Leg Aluminum Leg Improved Aluminum Leg Improved Aluminum Leg > --- UTILITY ---------- Small Storage Unit Improved Light Armor Plating Insulated Plating Insulated Plating > --- WEAPON ----------- Shotgun Minigun > --- INVENTORY -------- ECM Suite Insulated Plating Shield Generator Hacking Suite High-powered Shotgun Improved Grenade Launcher Katana [Rating: 25] Favorites ----------- Power Deuterium Engine Engine Deuterium Engine Power Core Light Nuclear Core Propulsion Aluminum Leg Leg Aluminum Leg Utility Small Storage Unit Device ECM Suite Storage Small Storage Unit Protection Medium Armor Plating Weapon Shotgun Energy Gun Small Laser Energy Cannon Light EM Pulse Cannon Ballistic Gun Shotgun Launcher Improved Grenade Launcher Slashing Weapon Katana Build | -11 -10 -9 -8 ------- Run | Yrd Mat Mat Mat Slots Evolved 4 | . . 2 2 Power . | . . . . Propulsion 2 | . . 1 1 Utility 2 | . . 1 1 Weapon . | . . . . Parts Attached 32 | . 4 5 23 Power 5 | . 1 1 3 Engine 4 | . 1 1 2 Core 1 | . . . 1 Reactor . | . . . . Propulsion 7 | . . 2 5 Treads . | . . . . Leg 7 | . . 2 5 Wheel . | . . . . Hover . | . . . . Flight . | . . . . Utility 12 | . 1 1 10 Device 2 | . 1 . 1 Storage . | . . . . Processor . | . . . . Hackware . | . . . . Protection 10 | . . 1 9 Artifact . | . . . . Weapon 8 | . 2 1 5 Energy Gun . | . . . . Energy Cannon 2 | . 1 1 . Ballistic Gun 4 | . 1 . 3 Ballistic Cannon . | . . . . Launcher 1 | . . . 1 Special Weapon . | . . . . Impact Weapon . | . . . . Slashing Weapon 1 | . . . 1 Piercing Weapon . | . . . . Special Melee Weapon . | . . . . Unidentified Prototypes . | . . . . Parts Lost 19 | . . . 19 Power 2 | . . . 2 Propulsion 6 | . . . 6 Utility 6 | . . . 6 Weapon 5 | . . . 5 Highest Loss Streak 12 | . . . 12 To Critical Strikes . | . . . . Average Slot Usage (%) 93 | . 92 100 91 Engine 9 | . 14 11 7 Leg 31 | . 28 33 32 Device 8 | . 7 11 7 Storage 10 | . 14 11 9 Protection 12 | . . 11 16 Energy Gun 1 | . 13 . . Energy Cannon 5 | . 1 11 4 Ballistic Gun 11 | . 13 11 11 Naked Turns . | . . . . Heaviest Build 33 | 10 17 26 33 Greatest Support 46 | 20 20 30 46 Greatest Overweight (x) 2 | . . . 2 Average Overweight (x) . | . . . . Largest Inventory Capacity 8 | . 8 8 8 Average Capacity 8 | . 8 8 8 Most Carried 8 | . 8 8 8 Average Carried 7 | . 7 7 7 Final Capacity 8 | 8 8 8 8 Final Carried 8 | 6 8 8 2 Class Distribution -------------------- 74% | Mutant 25% | Scavenger-Mutant Dominant Class ---------------- Mutant | -10/Materials Mutant | -9/Materials Mutant | -8/Materials Resources | -11 -10 -9 -8 ----------- Run | Yrd Mat Mat Mat Matter Collected 960 | 200 32 126 602 Remotely . | . . . . Salvage Created 1730 | . 276 266 1188 Parts 91 | . 12 18 61 Haulers Intercepted 1 | . . . 1 Recyclers Shooed . | . . . . Parts Field Recycled . | . . . . Retrieved Matter . | . . . . Parts Self-Destructed . | . . . . Prevented . | . . . . Kills | -11 -10 -9 -8 ------- Run | Yrd Mat Mat Mat Combat Hostiles Destroyed 45 | . 8 6 31 Guns 34 | . 8 4 22 Cannons 5 | . . 2 3 AOE 6 | . . . 6 Classes Destroyed 8 | . 2 1 5 Tunneler 1 | . . . 1 Hauler 1 | . . . 1 Swarmer 9 | . 3 . 6 Grunt 21 | . 5 3 13 Duelist 1 | . . . 1 Sentry 10 | . . 3 7 Specialist 3 | . . . 3 Hunter 1 | . . . 1 Best Kill Streak 7 | . 3 2 7 Combat Bots Only 6 | . 3 2 6 Max Kills in Single Turn 2 | . 1 1 2 Gunslinging . | . . . . Exploded 2 | . . . 2 Melee . | . . . . Uniques/NPCs Destroyed . | . . . . Combat | -11 -10 -9 -8 -------- Run | Yrd Mat Mat Mat Hostile Shots Fired 333 | . 27 23 283 Missed 99 | . 5 8 86 Damage Taken 3458 | . 241 190 3027 Core 644 | . 84 . 560 Absorbed by Shields 33 | . . . 33 Core Remaining (%) 88 | 100 66 100 . Volleys Fired 127 | . 22 14 91 Largest 2 | . 2 2 2 Hottest 79 | . 60 79 79 Shots Fired 232 | . 44 26 162 Gun 187 | . 44 14 129 Cannon 31 | . . 12 19 Launcher 14 | . . . 14 Special . | . . . . Kinetic 165 | . 22 14 129 Thermal 22 | . 22 . . Explosive 14 | . . . 14 Electromagnetic 31 | . . 12 19 Robot Hit Streak 12 | . 10 10 12 Robot Miss Streak 3 | . 2 3 3 Penetration Max . | . . . . Secondary Targets . | . . . . Shots Hit Robots 180 | . 29 21 130 Core Hits 95 | . 15 11 69 Critical Kills . | . . . . Critical Parts Destroyed 1 | . . . 1 Critical Strikes 1 | . . . 1 Destroy 1 | . . . 1 Melee Attacks 2 | . . . 2 Impact . | . . . . Slashing 2 | . . . 2 Piercing . | . . . . Sneak Attacks . | . . . . Combat Hostiles . | . . . . Follow-up Attacks . | . . . . Damage Inflicted 3747 | . 255 343 3149 Guns 1977 | . 250 189 1538 Cannons 518 | . . 154 364 Explosions 1204 | . . . 1204 Melee 33 | . . . 33 Ramming 15 | . 5 . 10 Kinetic 1848 | . 121 189 1538 Thermal 332 | . 129 . 203 Explosive 1001 | . . . 1001 Electromagnetic 518 | . . 154 364 Impact . | . . . . Slashing 33 | . . . 33 Piercing . | . . . . Highest Corruption . | . . . . Average Corruption . | . . . . Corruption Purged . | . . . . Corruption Blocked . | . . . . Overload Shots . | . . . . Overflow Damage 19 | . . . 19 Projectiles . | . . . . Explosions 19 | . . . 19 Melee . | . . . . Knockbacks . | . . . . Impact . | . . . . Kinetic . | . . . . Secondary . | . . . . Self-Inflicted Damage 110 | . . . 110 Shots 1 | . . . 1 Rammed . | . . . . Targets Rammed 3 | . 2 . 1 Kicked 3 | . 2 . 1 Crushed . | . . . . Highest Temperature 303 | . 88 63 303 Average Temperature 60 | . 34 28 72 Received Heat Transfer 669 | . 117 72 480 Effects 1 | . . . 1 Interference 1 | . . . 1 Siege Activations . | . . . . Robots Corrupted . | . . . . Combat Hostiles . | . . . . Parts Fried 1 | . . . 1 Impact Corruptions . | . . . . Robots Melted . | . . . . Combat Hostiles . | . . . . Parts Melted . | . . . . Heat Transferred 550 | . 300 . 250 Parts Sabotaged . | . . . . Parts Stolen . | . . . . Parts Stripped . | . . . . Power Chain Reactions . | . . . . Alert | -11 -10 -9 -8 ------- Run | Yrd Mat Mat Mat Peak Influence 600 | . 270 313 600 Initial 113 | . . 113 61 Average 212 | . 204 198 220 Maximum Alert Level 2 | . 1 1 2 Low Security (%) 46 | . 30 60 45 Level 1 43 | . 69 39 38 Level 2 10 | . . . 16 Level 3 . | . . . . Level 4 . | . . . . Level 5 . | . . . . High Security . | . . . . Max Security . | . . . . Squads Dispatched 9 | . 1 2 6 Investigation 1 | . . 1 . Extermination . | . . . . Reinforcement 7 | . 1 1 5 Assault . | . . . . Garrison 1 | . . . 1 Intercept . | . . . . Searches Triggered . | . . . . Construction Impeded 1 | . . . 1 Haulers Reinforced . | . . . . Active Scanning Responses . | . . . . Cargo Convoy Interrupts . | . . . . Stealth | -11 -10 -9 -8 --------- Run | Yrd Mat Mat Mat Distress Signals 7 | . 1 2 4 Communications Jammed . | . . . . Distress Signals . | . . . . Times Spotted 77 | . 13 10 54 Peak Tracking Total 6 | . 4 3 6 Tactical Retreats 10 | . 2 3 5 Traps | -11 -10 -9 -8 ------- Run | Yrd Mat Mat Mat Traps Triggered 1 | . . 1 . Indirectly . | . . . . Trap Hack Attempts . | . . . . Triggered . | . . . . Disarmed . | . . . . Reprogrammed . | . . . . Reused . | . . . . Traps Extracted . | . . . . Installed . | . . . . Triggered . | . . . . Machines | -11 -10 -9 -8 ---------- Run | Yrd Mat Mat Mat Machines Disabled 2 | . . . 2 Max in Single Turn 2 | . . . 2 Garrison Access 1 | . . . 1 Machines Repaired . | . . . . Machines Dismantled . | . . . . Machines Sabotaged . | . . . . Overloaded Fab Kills . | . . . . Hacking | -11 -10 -9 -8 --------- Run | Yrd Mat Mat Mat Machines Accessed 12 | . 1 3 8 Terminals 11 | . 1 3 7 Fabricators . | . . . . Repair Stations . | . . . . Recycling Units . | . . . . Scanalyzers . | . . . . Garrison Access 1 | . . . 1 Total Hacks 36 | . 2 8 26 Successful 22 | . 1 3 18 Failed 14 | . 1 5 8 Catastrophic 3 | . . 1 2 Database Lockouts . | . . . . Manual 16 | . 2 6 8 Terminals 33 | . 2 8 23 Fabricators . | . . . . Repair Stations . | . . . . Recycling Units . | . . . . Scanalyzers . | . . . . Garrison Access 3 | . . . 3 Terminal Hacks 10 | . . . 10 Prototype ID Bank 3 | . . . 3 Branch Access Points 1 | . . . 1 Terminal Index 1 | . . . 1 Locate Traps 3 | . . . 3 Dispatch Records 1 | . . . 1 Registered Components 1 | . . . 1 Fabricator Hacks . | . . . . Repair Station Hacks . | . . . . Recycling Unit Hacks . | . . . . Scanalyzer . | . . . . Garrison Access Hacks 1 | . . . 1 Seal Access 1 | . . . 1 Unauthorized Hacks 11 | . 1 3 7 Terminals 10 | . 1 3 6 Botnet 10 | . 1 3 6 Fabricators . | . . . . Repair Stations . | . . . . Recycling Units . | . . . . Scanalyzers . | . . . . Garrison Access 1 | . . . 1 Watchers 1 | . . . 1 Data Cores Recovered . | . . . . Used . | . . . . Hacking Detections 11 | . 1 3 7 Full Trace Events 1 | . . . 1 Feedback Events . | . . . . Feedback Blocked . | . . . . Robot Schematics Acquired . | . . . . Robots Built . | . . . . Authchips . | . . . . Time . | . . . . Total Robot Build Rating . | . . . . Part Schematics Acquired . | . . . . Parts Built . | . . . . Authchips . | . . . . Time . | . . . . Total Part Build Rating . | . . . . Parts Repaired . | . . . . Time . | . . . . Parts Recycled . | . . . . Recycled Matter . | . . . . Retrieved Matter . | . . . . Retrieved Components . | . . . . Parts Scanalyzed . | . . . . Part Schematics Acquired . | . . . . Parts Damaged . | . . . . Bothacking | -11 -10 -9 -8 ------------ Run | Yrd Mat Mat Mat Used RIF Installer . | . . . . Robots Hacked . | . . . . Non-combat . | . . . . Combat . | . . . . Robot Hacks Applied . | . . . . Relay Couplers Released . | . . . . Fabnet Peak Effective % . | . . . . Robots Rewired . | . . . . Allies Hacked . | . . . . Hacks Repelled . | . . . . Allies | -11 -10 -9 -8 -------- Run | Yrd Mat Mat Mat Total Allies . | . . . . Largest Group . | . . . . Highest-Rated Group . | . . . . Highest-Rated Ally . | . . . . Total Orders . | . . . . Ally Attacks . | . . . . Total Damage . | . . . . Kills . | . . . . Allies Corrupted . | . . . . Allies Melted . | . . . . Intel | -11 -10 -9 -8 ------- Run | Yrd Mat Mat Mat Robot Analysis Total . | . . . . Derelict Logs Recovered . | . . . . Drone Launches . | . . . . Drone Recoveries . | . . . . Exploration | -11 -10 -9 -8 ------------- Run | Yrd Mat Mat Mat Turns Passed 2215 | . 321 495 1399 Spaces Moved 1106 | 1 156 280 669 Core 31 | . . . 31 Treads . | . . . . Legs 1075 | 1 156 280 638 Wheels . | . . . . Hover . | . . . . Flight . | . . . . Fastest Speed 100 | 120 120 120 100 Average Speed 121 | 120 120 120 123 Slowest Speed 190 | 120 120 120 190 Overloaded Moves . | . . . . Propulsion Burnouts . | . . . . Robots Hopped . | . . . . Cave-ins Triggered . | . . . . Exploration Rate (%) 28 | 2 28 25 57 Regions Visited 3 Branch Regions . Pre-discovered Areas . | . . . . Known Exits Taken . | . . . . Unknown Exits Taken 3 | 1 1 1 . Scrap Searched . | . . . . Spaces Dug . | . . . . Terrain Destroyed 91 | . . . 91 Melee . | . . . . Projectile . | . . . . AOE 91 | . . . 91 Terrain Rammed . | . . . . Walls Destroyed . | . . . . Machines Disabled . | . . . . Actions | -11 -10 -9 -8 --------- Run | Yrd Mat Mat Mat Total 1765 | . 258 414 1093 Wait 434 | . 44 109 281 Move 1103 | . 155 279 669 Hop . | . . . . Pick Up 32 | . 17 4 11 Fast Attach 5 | . . . 5 Attach 14 | . 1 2 11 Detach . | . . . . Swap 13 | . 3 3 7 Drop 31 | . 14 3 14 Fire 127 | . 22 14 91 Melee 2 | . . . 2 Ram . | . . . . Kick 3 | . 2 . 1 Crush . | . . . . Escape Stasis . | . . . . Rewire 1 | . . . 1 Trap . | . . . . Miscellaneous . | . . . . Route ------- -11/Scrapyard -10/Materials -9/Materials (discovered 2 exits: *Mat x2) -8/Materials (discovered 1 exit: [*Fac]) History --------- Turn | Location | Event 1 | -11/Scrapyard | Discovered new exit (range 0) 1 | -11/Scrapyard | Entered Materials 278 | -10/Materials | Discovered new exit (range 7) 322 | -10/Materials | Entered another Materials area 322 | -9/Materials | Evolved 2 slots: Propulsion x1, Utility x1 344 | -9/Materials | Build established: Mutant 623 | -9/Materials | Discovered new exit (range 4) 799 | -9/Materials | Discovered new exit (range 16) 817 | -9/Materials | Entered another Materials area 817 | -8/Materials | Evolved 2 slots: Propulsion x1, Utility x1 995 | -8/Materials | Garrison activated, responded to threat 1124 | -8/Materials | Build established: Scavenger-Mutant 1683 | -8/Materials | Build established: Mutant 2097 | -8/Materials | Lost 12 parts (2p3n4u3w) 2110 | -8/Materials | Core integrity fell below 50% 2130 | -8/Materials | Discovered new exit (range 12) 2172 | -8/Materials | Lost 6 parts (2n2u2w) 2216 | -8/Materials | Core integrity fell below 20% 2216 | -8/Materials | Destroyed by G-47 Trooper with Particle Gun Last Messages --------------- Acquired 23 matter. U-05 Engineer lays Concrete. U-05 Engineer builds a Wall. The unstable cave ceiling collapses. Acquired Hpw. Shotgun. The unstable cave ceiling collapses. Knocked back. Acquired 7 matter. U-05 Engineer lays Concrete. K-01 Serf collects debris. U-05 Engineer lays Concrete. K-01 Serf collects debris. U-05 Engineer lays Concrete. Knocked back. Fusion Modulator explodes. Destroyed Aluminum Leg. G-47 Trooper destroyed. A-02 Transporter destroyed. Terminal disabled. U-05 Engineer lays Concrete. Map ----- +----------------------------------------------------+ | ########## #????# #??????????????? | | ?????????#######????## ########????????? | | ?????????????????????# # #????????? | | ???????????########??# + * =#????????? | | ???????????# !!! ?# # #????????? | | ???????????# !!! ?# # #????????? | | ???????????# !! # #? ] #????????? | | ???????????# # #? #????????? | | ??????????????"" """ + #??#####????????? | | ??????????????"" """ # #???????#???????? | | ??????????????"" """ # #???? #???????? | | ?????????????? ?# ### #???????? | | ??????????????######?# #???????? | | ?????????????????????# ### #???????? | | ?????????????????????# #???? #???????? | | ????????????????????## w #####???#???????? | | ????????????????????# # ? ???? ????? | | ????????????????????# k # ???""????? | | ????????????????????+ T # "" "" ""????? | | ????????????????????# # ""S"" "?????? | | ????????????????????# ; """" ???????? | | ?????????????!??????## ;;;;;;;#????????? | | ?????????????????????# g; ##???????? | | ?????????????????????# %; ;#???????? | | ?????????????????????#* ;g ;#???????? | | ?????????????????????#[[ @ ;#???????? | | ?????????????????????#%[=; ;#???????? | | ?????????????????????#k= ; ;#???????? | | ?????????????????????#! ;;;;;;;##???????? | | ?????????????????????# ;; ; #????????? | | ????????????#????????# ## # ###????????? | | ????????????# ???????# ##%###??????????? | | ????????????# ???????# #"H###??????????? | | ????????????# ??????# ##;# ###????????? | | ????????????# ?????## # !! !#????????? | | ????????????# ???### # u #????????? | | ????????????# ?### # %# ! #????????? | | ????????????# # ## %# % #????????? | | ???????????## """## + [ = #????????? | | ???????????#" # * ##???????? | | ????????????# #### # ##??????? | | ????????????# # """ ? | | ????????????# % ? | | ????????????#### % # | | ???????????????# % # | | ???????????????# ""?? | | ???????????????# ########## [ ""?? | | ???????????????# ?????????? # S"? | | ???????????????#??????????? ""?? | | ??????????????????????????? ""?? | +----------------------------------------------------+ Best States ------------- Heat Dissipation 31 Energy Generation 14 Energy Capacity 275 Matter Stores 300 Matter Capacity 300 Sight Range 16 Terrain Scan Density 10 ECM Strength 1 Armor Coverage 375 Resistance: EM 15 Evasion (%) 55 Item Schematics ----------------- None Robot Schematics ------------------ None Fabricated ------------ Nothing Alien Tech Used ----------------- None Achievements -------------- None Challenges ------------ None Game ------ Seed PhaseDiametricMultirail Manual? 0 Play Time 00:34:51 Cumulative 35.7 hours Start 2024.04.22 @ 17:50:54 End 2024.04.22 @ 18:24:52 Sessions 1 Manual Loads 0 Difficulty Rogue Special Mode None Game No. 40 Rogue 40 Adventurer 0 Explorer 0 Win Type - Total 0 Types 0/0/0/0/0/0/0/0/0 Lore% 34 Gallery% 24 Achievement% 27 Wizard Run 0 Options --------- Layout 1 ASCII 0 Keyboard 1 Movement Numpad Keybinds 0 Fullscreen 2 Font 20/SmallcapsGlow Map View 54x42 Zoom Use 0% Tactical HUD 0 Map Filters NONE Filters NONE Steam 1 RUN: d608950b-411c-4465-a43e-007878535ff9